fUST/lending_fUST_20250628
["ID","MTS","AMOUNT","RATE_DAILY","PERIOD"]
[368314896,1751112649546,-500.0,0.00020755,2]
[368314897,1751112649555,-500.0,0.00020755,2]
[368314898,1751112649564,-500.0,0.00020755,2]
[368314899,1751112649573,-500.0,0.00020755,2]
[368314900,1751112649582,-500.0,0.00020755,2]
[368314901,1751112649592,-500.0,0.00020755,2]
[368314902,1751112649601,-500.0,0.00020755,2]
[368314903,1751112649610,-500.0,0.00020755,2]
[368314904,1751112649621,-151.0,0.00020755,2]
[368314905,1751112649631,-1500.0,0.00020772,2]
[368314906,1751112649640,-1500.0,0.00020772,2]
[368314907,1751112649650,-1500.0,0.00020796,2]
[368314908,1751112649660,-1500.0,0.00020796,2]
[368314909,1751112649669,-612.0,0.00020801,2]
[368314910,1751112649678,-460.0,0.0002082,2]
[368314911,1751112649687,-460.0,0.00020821,2]
[368314912,1751112649696,-460.0,0.00020821,2]
[368314913,1751112649706,-155.07303576,0.00020821,2]
[368314914,1751112649716,-460.0,0.00020821,2]
[368314915,1751112649725,-460.0,0.00020821,2]
[368314916,1751112649736,-460.0,0.00020821,2]
[368314917,1751112649745,-460.0,0.00020821,2]
[368314918,1751112649754,-460.0,0.00020821,2]
[368314919,1751112649764,-460.0,0.00020821,2]
[368314920,1751112649773,-586.13,0.00020821,2]
[368314921,1751112649782,-460.0,0.00020821,2]
[368314922,1751112649792,-460.0,0.00020821,2]
[368314923,1751112649801,-696.72,0.00020821,2]
[368314924,1751112649811,-460.0,0.00020821,2]
[368314925,1751112649820,-460.0,0.00020821,2]
[368314926,1751112649830,-460.0,0.00020821,2]
[368314927,1751112649839,-460.0,0.00020821,2]
[368314928,1751112649849,-460.0,0.00020821,2]
[368314929,1751112649858,-460.0,0.00020821,2]
[368314930,1751112649868,-460.0,0.00020821,2]
[368314931,1751112649877,-1777.39,0.00020821,2]
[368314932,1751112649887,-460.0,0.00020821,2]
[368314933,1751112649896,-460.0,0.00020821,2]
[368314934,1751112649906,-2348.86,0.00020821,2]
[368314935,1751112649915,-903.49,0.00020821,2]
[368314936,1751112649924,-1929.81,0.00020821,2]
[368314937,1751112649934,-540.18,0.00020821,2]
[368314938,1751112649943,-770.42,0.00020821,2]
[368314939,1751112649952,-460.0,0.00020821,2]
[368314940,1751112649962,-460.0,0.00020821,2]
[368314941,1751112649971,-460.0,0.00020821,2]
[368314942,1751112649980,-510.92,0.00020821,2]
[368314943,1751112649989,-460.0,0.00020821,2]
[368314944,1751112649999,-460.0,0.00020821,2]
[368314945,1751112650008,-460.0,0.00020821,2]
[368314946,1751112650018,-460.0,0.00020821,2]
[368314947,1751112650028,-460.0,0.00020821,2]
[368314948,1751112650038,-460.0,0.00020821,2]
[368314949,1751112650048,-460.0,0.00020821,2]
[368314950,1751112650058,-460.0,0.00020821,2]
[368314951,1751112650067,-2238.61,0.00020821,2]
[368314952,1751112650077,-460.0,0.00020821,2]
[368314953,1751112650087,-460.0,0.00020821,2]
[368314954,1751112650096,-2082.05,0.00020821,2]
[368314955,1751112650105,-662.68,0.00020821,2]
[368314956,1751112650114,-888.51,0.00020821,2]
[368314957,1751112650123,-2294.55,0.00020821,2]
[368314958,1751112650132,-2565.67,0.00020821,2]
[368314959,1751112650142,-460.0,0.00020821,2]
[368314960,1751112650151,-571.49,0.00020821,2]
[368314961,1751112650160,-475.52,0.00020821,2]
[368314962,1751112650169,-985.11,0.00020821,2]
[368314963,1751112650178,-460.0,0.00020821,2]
[368314964,1751112650187,-472.84,0.00020821,2]
[368314965,1751112650196,-1816.69,0.00020821,2]
[368314966,1751112650205,-477.93,0.00020821,2]
[368314967,1751112650214,-468.63,0.00020821,2]
[368314968,1751112650224,-1390.5,0.00020821,2]
[368314969,1751112650233,-460.0,0.00020821,2]
[368314970,1751112650243,-3647.37,0.00020821,2]
[368314971,1751112650253,-460.0,0.00020821,2]
[368314972,1751112650263,-460.0,0.00020821,2]
[368314973,1751112650272,-706.41,0.00020821,2]
[368314974,1751112650281,-460.0,0.00020821,2]
[368314975,1751112650291,-460.0,0.00020821,2]
[368314976,1751112650299,-460.0,0.00020821,2]
[368314977,1751112650308,-573.22,0.00020821,2]
[368314978,1751112650317,-460.0,0.00020821,2]
[368314979,1751112650326,-460.0,0.00020821,2]
[368314980,1751112650335,-460.0,0.00020821,2]
[368314981,1751112650345,-1628.95,0.00020821,2]
[368314982,1751112650354,-460.0,0.00020821,2]
[368314983,1751112650363,-583.65,0.00020821,2]
[368314984,1751112650373,-3695.96,0.00020821,2]
[368314985,1751112650382,-460.0,0.00020821,2]
[368314986,1751112650391,-460.0,0.00020821,2]
[368314987,1751112650400,-158.83,0.00020821,2]
[368314988,1751112650410,-460.0,0.00020821,2]
[368314989,1751112650419,-571.18,0.00020821,2]
[368314990,1751112650428,-460.0,0.00020821,2]
[368314991,1751112650437,-460.0,0.00020821,2]
[368314992,1751112650446,-1010.35,0.00020821,2]
[368314993,1751112650455,-510.74030379,0.00020821,2]
[368314994,1751112651245,-0.09311883,0.00020821,2]
[368314995,1751112651352,-460.0,0.00019178,2]
[368314996,1751112651362,-460.0,0.00019452,2]
[368314997,1751112651372,-325.46,0.00019726,2]
[368314998,1751112651382,-151.0,0.00020755,2]
[368314999,1751112651391,-354.32657738,0.00020821,2]
[368315000,1751112651400,-460.0,0.00020821,2]
[368315001,1751112651409,-460.0,0.00020821,2]
[368315002,1751112651420,-460.0,0.00020821,2]
[368315003,1751112651430,-1301.2,0.00020821,2]
[368315004,1751112651439,-579.75,0.00020821,2]
[368315005,1751112651449,-597.22,0.00020821,2]
[368315006,1751112651459,-151.0,0.00020902,2]
[368315007,1751112651469,-151.0,0.00020902,2]
[368315008,1751112651483,-151.0,0.00020902,2]
[368315009,1751112651494,-151.0,0.00020902,2]
[368315010,1751112651504,-118.33281169,0.00020902,2]
[368315011,1751112651516,-32.66718831,0.00020902,2]
[368315012,1751112651525,-151.0,0.00020902,2]
[368315013,1751112651535,-6503.10249779,0.00020934,4]
[368315014,1751112651545,-612.0,0.00020974,2]
[368315015,1751112651556,-151.0,0.0002099,2]
[368315016,1751112651566,-151.0,0.0002099,2]
[368315017,1751112651575,-371.890588,0.0002099,2]
[368315018,1751112651584,-371.890588,0.0002099,2]
[368315019,1751112651593,-151.0,0.0002099,2]
[368315020,1751112651603,-702.275224,0.0002099,2]
[368315021,1751112651612,-702.275224,0.0002099,2]
[368315022,1751112651621,-21171.0265687,0.00021,2]
[368315023,1751112651632,-24461.6912203,0.00021,2]
[368315024,1751112651643,-151.0,0.00021,2]
[368315025,1751112651652,-151.0,0.00021,2]
[368315026,1751112651662,-151.0,0.00021,2]
[368315027,1751112651671,-151.0,0.00021,2]
[368315028,1751112651683,-68.47840372,0.00021094,2]
[368315029,1751112651760,-288.1227444,0.000188,2]
[368315030,1751112651770,-460.0,0.00019178,2]
[368315031,1751112651779,-391.52159628,0.00021094,2]
[368315032,1751112651789,-460.0,0.00021095,2]
[368315033,1751112651798,-460.0,0.00021095,2]
[368315034,1751112651808,-278.93941916,0.00021095,2]
[368315035,1751112651818,-460.0,0.00021095,2]
[368315036,1751112651827,-460.0,0.00021095,2]
[368315037,1751112651837,-460.0,0.00021095,2]
[368315038,1751112651846,-460.0,0.00021095,2]
[368315039,1751112651855,-586.13,0.00021095,2]
[368315040,1751112651865,-460.0,0.00021095,2]
[368315041,1751112651875,-460.0,0.00021095,2]
[368315042,1751112651884,-696.72,0.00021095,2]
[368315043,1751112651893,-460.0,0.00021095,2]
[368315044,1751112651902,-460.0,0.00021095,2]
[368315045,1751112651911,-151.0,0.00021095,2]
[368315046,1751112651921,-460.0,0.00021095,2]
[368315047,1751112651930,-460.0,0.00021095,2]
[368315048,1751112651939,-320.59874928,0.00021095,2]
[368315049,1751112651949,-460.0,0.00021095,2]
[368315050,1751112651959,-460.0,0.00021095,2]
[368315051,1751112651968,-737.37073017,0.00021095,2]
[368315052,1751112847152,1246.21547498,0.0001811,2]
[368315053,1751112932939,343.5924766,0.00017954,2]
[368315054,1751112969577,7026.32655,0.00017895,2]
[368315055,1751112987293,200.57327451,0.00017631,2]
[368315056,1751113005124,203.0860488,0.00017823,2]
[368315057,1751113056539,10000.0,0.00024658,120]
[368315058,1751113068704,10000.0,0.00022,90]
[368315059,1751113078472,10000.0,0.00022,60]
[368315060,1751113090008,10000.0,0.00023,30]
[368315061,1751113103253,10000.0,0.00024658,120]
[368315062,1751113112155,10000.0,0.00022,90]
[368315063,1751113121132,10000.0,0.00022,60]
[368315064,1751113131278,10000.0,0.00023,30]
[368315065,1751113134244,2829.47866697,0.00017823,2]
[368315066,1751113134268,17881.54952913,0.00017823,2]
[368315067,1751113140081,10000.0,0.00024658,120]
[368315068,1751113149323,10000.0,0.00022,90]
[368315069,1751113158898,10000.0,0.00022,60]
[368315070,1751113167347,10000.0,0.00023,30]
[368315071,1751113179921,10000.0,0.00024658,120]
[368315072,1751113188149,1300.58769978,0.000181,2]
[368315073,1751113188172,3699.41230022,0.000181,2]
[368315074,1751113189073,10000.0,0.00022,90]
[368315075,1751113198253,10000.0,0.00023,30]
[368315076,1751113208480,10000.0,0.00023,30]
[368315077,1751113217083,10000.0,0.00024658,120]
[368315078,1751113224968,10000.0,0.00022,90]
[368315079,1751113233396,10000.0,0.00022,60]
[368315080,1751113238659,10000.0,0.00017739,2]
[368315081,1751113242147,10000.0,0.00023,30]
[368315082,1751113249389,5000.0,0.000181,2]
[368315083,1751113256728,10000.0,0.00024658,120]
[368315084,1751113266047,10000.0,0.00022,90]
[368315086,1751113274063,10000.0,0.00022,60]
[368315087,1751113309891,1300.58769978,0.000181,2]
[368315088,1751113309915,3699.41230022,0.000181,2]
[368315089,1751113368672,5000.0,0.000181,2]
[368315090,1751113443185,5000.0,0.000181,2]
[368315091,1751113447541,166.0,0.00017191,2]
[368315092,1751113465545,290.113146,0.00013699,2]
[368315094,1751113490446,170.43098,0.0002254,30]
[368315095,1751113503173,5000.0,0.000181,2]
[368315102,1751113532399,10000.0,0.00023,30]
[368315103,1751113566586,844.47455378,0.000181,2]
[368315104,1751113566609,4155.52544622,0.000181,2]
[368315106,1751113626854,5000.0,0.000181,2]
[368315107,1751113632091,-500.0,0.00018116,2]
[368315108,1751113632113,-167.57885107,0.00018116,2]
[368315109,1751113687872,1000.0,0.00023,30]
[368315110,1751113688803,5000.0,0.000181,2]
[368315120,1751113732638,-154.26491177,0.00018116,2]
[368315121,1751113748482,5000.0,0.000181,2]
[368315129,1751113792708,-180.14763833,0.00018116,2]
[368315130,1751113792735,-119.85236167,0.00018172,2]
[368315131,1751113797611,-273.90747588,0.00018172,2]
[368315132,1751113800608,-340.40728578,0.00018172,2]
[368315133,1751113802083,-213.24153773,0.00018173,2]
[368315134,1751113805343,-291.86805727,0.00018172,2]
[368315137,1751113807458,-8.13194273,0.00018172,2]
[368315138,1751113807480,-158.86805727,0.00018172,2]
[368315139,1751113807939,844.47455378,0.000181,2]
[368315140,1751113807964,4155.52544622,0.000181,2]
[368315141,1751113809687,-141.13194273,0.00018172,2]
[368315142,1751113809709,-25.86805727,0.00018172,2]
[368315143,1751113813820,-167.0,0.00018172,2]
[368315147,1751113832482,-1007.13194273,0.00018172,2]
[368315149,1751113832493,-300.0,0.00018172,2]
[368315151,1751113832502,-300.0,0.00018172,2]
[368315152,1751113832512,-4579.75846227,0.00018173,2]
[368315153,1751113832522,-1200.0,0.00018173,2]
[368315154,1751113832531,-500.0,0.00018175,2]
[368315155,1751113832541,-500.0,0.00018175,2]
[368315156,1751113832550,-500.0,0.00018175,2]
[368315157,1751113832559,-411.38738111,0.00018175,2]
[368315158,1751113837470,-88.61261889,0.00018175,2]
[368315159,1751113837493,-116.30557584,0.00018175,2]
[368315172,1751113838355,-383.69442416,0.00018175,2]
[368315175,1751113838365,-379.4191078,0.00018175,2]
[368315177,1751113838375,-24900.0,0.00018176,2]
[368315179,1751113838385,-989.32730531,0.0001834,2]
[368315181,1751113838395,-500.0,0.00018373,2]
[368315182,1751113838404,-1640.78,0.00019168,3]
[368315184,1751113838415,-820.39,0.00019168,3]
[368315187,1751113838426,-410.19,0.00019168,3]
[368315189,1751113838436,-205.1,0.00019168,3]
[368315190,1751113838447,-615.32,0.00019168,3]
[368315193,1751113838459,-1000.63850076,0.00019171,2]
[368315194,1751113838468,-460.0,0.00019178,2]
[368315196,1751113838477,-460.0,0.00019178,2]
[368315198,1751113838487,-460.0,0.00019178,2]
[368315201,1751113838497,-460.8018428,0.00019178,2]
[368315202,1751113838506,-429.93813131,0.00019178,2]
[368315205,1751113838515,-460.0,0.00019178,2]
[368315206,1751113838524,-474.47,0.00019178,2]
[368315209,1751113838534,-460.0,0.00019178,2]
[368315210,1751113838543,-460.0,0.00019178,2]
[368315213,1751113838552,-450.0,0.00019178,2]
[368315214,1751113838562,-460.0,0.00019178,2]
[368315216,1751113838571,-460.0,0.00019178,2]
[368315219,1751113838580,-460.0,0.00019178,2]
[368315220,1751113838589,-460.0,0.00019178,2]
[368315221,1751113838598,-460.0,0.00019178,2]
[368315222,1751113838607,-460.0,0.00019178,2]
[368315223,1751113838617,-460.0,0.00019178,2]
[368315224,1751113838626,-460.0,0.00019178,2]
[368315225,1751113838635,-460.0,0.00019178,2]
[368315226,1751113838644,-460.0,0.00019178,2]
[368315227,1751113838653,-432.4628206,0.00019178,2]
[368315228,1751113838662,-460.0,0.00019178,2]
[368315229,1751113838671,-461.7889499,0.00019178,2]
[368315230,1751113838680,-460.0,0.00019178,2]
[368315231,1751113838690,-460.0,0.00019178,2]
[368315232,1751113838699,-460.0,0.00019178,2]
[368315233,1751113838708,-460.0,0.00019178,2]
[368315234,1751113838717,-544.06228736,0.00019178,2]
[368315235,1751113838726,-460.0,0.00019178,2]
[368315236,1751113838735,-460.0,0.00019178,2]
[368315237,1751113838745,-462.52718163,0.00019178,2]
[368315238,1751113838754,-460.0,0.00019178,2]
[368315239,1751113838763,-463.6476598,0.00019178,2]
[368315241,1751113838772,-440.0,0.00019178,2]
[368315243,1751113838781,-460.0,0.00019178,2]
[368315245,1751113838790,-460.0,0.00019178,2]
[368315247,1751113838799,-460.0,0.00019178,2]
[368315248,1751113838808,-460.0,0.00019178,2]
[368315251,1751113838817,-460.0,0.00019178,2]
[368315252,1751113838826,-460.0,0.00019178,2]
[368315254,1751113838836,-460.0,0.00019178,2]
[368315256,1751113838845,-460.0,0.00019178,2]
[368315258,1751113838854,-460.0,0.00019178,2]
[368315260,1751113838864,-293.66322788,0.00019178,2]
[368315262,1751113838873,-460.0,0.00019178,2]
[368315264,1751113838882,-460.0,0.00019178,2]
[368315266,1751113838891,-460.0,0.00019178,2]
[368315268,1751113838899,-254.2608185,0.00019178,2]
[368315270,1751113838908,-460.0,0.00019178,2]
[368315272,1751113838918,-460.0,0.00019178,2]
[368315274,1751113838927,-460.0,0.00019178,2]
[368315276,1751113838936,-460.0,0.00019178,2]
[368315278,1751113838945,-460.0,0.00019178,2]
[368315280,1751113838954,-460.0,0.00019178,2]
[368315282,1751113838963,-460.0,0.00019178,2]
[368315284,1751113838973,-460.0,0.00019178,2]
[368315286,1751113838982,-460.0,0.00019178,2]
[368315288,1751113838991,-469.88910191,0.00019178,2]
[368315290,1751113839000,-460.0,0.00019178,2]
[368315293,1751113839011,-460.0,0.00019178,2]
[368315294,1751113839021,-460.0,0.00019178,2]
[368315296,1751113839030,-430.0,0.00019178,2]
[368315299,1751113839040,-460.0,0.00019178,2]
[368315300,1751113839049,-460.0,0.00019178,2]
[368315302,1751113839058,-460.0,0.00019178,2]
[368315305,1751113839068,-460.0,0.00019178,2]
[368315307,1751113839077,-460.0,0.00019178,2]
[368315308,1751113839086,-460.0,0.00019178,2]
[368315310,1751113839096,-214.48740558,0.00019178,2]
[368315313,1751113839105,-460.0,0.00019178,2]
[368315315,1751113839115,-460.0,0.00019178,2]
[368315316,1751113839124,-460.0,0.00019178,2]
[368315318,1751113839133,-460.0,0.00019178,2]
[368315321,1751113839142,-464.95034664,0.00019178,2]
[368315322,1751113839152,-460.0,0.00019178,2]
[368315324,1751113839161,-460.0,0.00019178,2]
[368315325,1751113839170,-460.0,0.00019178,2]
[368315327,1751113839179,-434.75759253,0.00019178,2]
[368315329,1751113839189,-289.98155882,0.00019178,2]
[368315331,1751113839198,-460.0,0.00019178,2]
[368315333,1751113839207,-460.0,0.00019178,2]
[368315336,1751113839365,-460.0,0.00019178,2]
[368315337,1751113839376,-460.0,0.00019178,2]
[368315338,1751113839385,-460.0,0.00019178,2]
[368315339,1751113839395,-460.0,0.00019178,2]
[368315340,1751113839404,-460.0,0.00019178,2]
[368315341,1751113839413,-460.0,0.00019178,2]
[368315342,1751113839422,-460.0,0.00019178,2]
[368315343,1751113839430,-460.0,0.00019178,2]
[368315344,1751113839440,-460.0,0.00019178,2]
[368315345,1751113839450,-460.0,0.00019178,2]
[368315346,1751113839460,-460.0,0.00019178,2]
[368315347,1751113839469,-460.0,0.00019178,2]
[368315348,1751113839478,-460.0,0.00019178,2]
[368315349,1751113839488,-460.0,0.00019178,2]
[368315350,1751113839497,-460.0,0.00019178,2]
[368315351,1751113839507,-338.0502782,0.00019178,2]
[368315352,1751113839517,-210.66622379,0.00019178,2]
[368315353,1751113839526,-460.0,0.00019178,2]
[368315354,1751113839536,-460.0,0.00019178,2]
[368315355,1751113839545,-440.0,0.00019178,2]
[368315356,1751113839554,-460.0,0.00019178,2]
[368315357,1751113839563,-460.0,0.00019178,2]
[368315358,1751113839573,-500.0,0.00019178,2]
[368315359,1751113839582,-531.42,0.00019178,2]
[368315360,1751113839591,-460.0,0.00019178,2]
[368315361,1751113839600,-433.08403681,0.00019178,2]
[368315362,1751113839609,-460.0,0.00019178,2]
[368315363,1751113839619,-366.61941739,0.00019178,2]
[368315364,1751113839629,-460.0,0.00019178,2]
[368315365,1751113839639,-460.0,0.00019178,2]
[368315366,1751113839649,-460.0,0.00019178,2]
[368315367,1751113839658,-460.0,0.00019178,2]
[368315368,1751113839667,-460.0,0.00019178,2]
[368315369,1751113839677,-399.67921954,0.00019178,2]
[368315370,1751113839686,-460.0,0.00019178,2]
[368315371,1751113839695,-460.0,0.00019178,2]
[368315372,1751113839704,-460.0,0.00019178,2]
[368315373,1751113839713,-460.0,0.00019178,2]
[368315374,1751113839722,-201.03521453,0.00019178,2]
[368315375,1751113839732,-621.93,0.00019178,2]
[368315376,1751113839742,-460.0,0.00019178,2]
[368315377,1751113839753,-460.0,0.00019178,2]
[368315378,1751113839762,-460.0,0.00019178,2]
[368315379,1751113839772,-460.0,0.00019178,2]
[368315380,1751113839781,-460.0,0.00019178,2]
[368315381,1751113839791,-460.0,0.00019178,2]
[368315382,1751113839802,-460.0,0.00019178,2]
[368315383,1751113839811,-460.0,0.00019178,2]
[368315384,1751113839820,-460.34367621,0.00019178,2]
[368315385,1751113839832,-460.0,0.00019178,2]
[368315386,1751113839842,-460.0,0.00019178,2]
[368315387,1751113839854,-460.0,0.00019178,2]
[368315388,1751113839867,-160.48617196,0.00019178,2]
[368315389,1751113839876,-460.0,0.00019178,2]
[368315390,1751113839887,-454.17462625,0.00019178,2]
[368315391,1751113839899,-460.0,0.00019178,2]
[368315392,1751113839912,-460.0,0.00019178,2]
[368315393,1751113839922,-459.12041124,0.00019178,2]
[368315394,1751113839932,-460.0,0.00019178,2]
[368315395,1751113839947,-460.0,0.00019178,2]
[368315396,1751113839956,-460.0,0.00019178,2]
[368315397,1751113839965,-460.0,0.00019178,2]
[368315398,1751113839975,-460.0,0.00019178,2]
[368315399,1751113839985,-1357.73,0.00019178,2]
[368315400,1751113839994,-460.0,0.00019178,2]
[368315401,1751113840003,-460.0,0.00019178,2]
[368315402,1751113840013,-460.0,0.00019178,2]
[368315403,1751113840022,-460.0,0.00019178,2]
[368315404,1751113840031,-460.0,0.00019178,2]
[368315405,1751113840042,-460.0,0.00019178,2]
[368315406,1751113840051,-460.0,0.00019178,2]
[368315407,1751113840061,-460.0,0.00019178,2]
[368315409,1751113840070,-460.0,0.00019178,2]
[368315410,1751113840079,-460.0,0.00019178,2]
[368315411,1751113840088,-472.03175633,0.00019178,2]
[368315412,1751113840098,-460.0,0.00019178,2]
[368315413,1751113840107,-522.79887585,0.00019178,2]
[368315414,1751113840117,-460.0,0.00019178,2]
[368315415,1751113840126,-460.0,0.00019178,2]
[368315416,1751113840135,-530.27,0.00019178,2]
[368315417,1751113840144,-460.0,0.00019178,2]
[368315418,1751113840153,-460.0,0.00019178,2]
[368315419,1751113840163,-460.0,0.00019178,2]
[368315420,1751113840172,-460.0,0.00019178,2]
[368315421,1751113840181,-460.0,0.00019178,2]
[368315422,1751113840190,-460.0,0.00019178,2]
[368315423,1751113840199,-460.0,0.00019178,2]
[368315424,1751113840209,-460.0,0.00019178,2]
[368315425,1751113840218,-460.0,0.00019178,2]
[368315426,1751113840227,-460.0,0.00019178,2]
[368315427,1751113840240,-460.0,0.00019178,2]
[368315428,1751113840249,-460.0,0.00019178,2]
[368315429,1751113840259,-1781.31,0.00019178,2]
[368315430,1751113840269,-460.0,0.00019178,2]
[368315431,1751113840279,-460.0,0.00019178,2]
[368315432,1751113840288,-460.0,0.00019178,2]
[368315433,1751113840297,-500.0,0.00019178,2]
[368315434,1751113840307,-481.37040641,0.00019178,2]
[368315435,1751113840318,-460.0,0.00019178,2]
[368315436,1751113840327,-2128.05,0.00019178,2]
[368315437,1751113840337,-460.0,0.00019178,2]
[368315438,1751113840346,-460.0,0.00019178,2]
[368315439,1751113840355,-460.0,0.00019178,2]
[368315440,1751113840364,-460.0,0.00019178,2]
[368315441,1751113840373,-462.52326736,0.00019178,2]
[368315442,1751113840382,-460.0,0.00019178,2]
[368315443,1751113840391,-460.0,0.00019178,2]
[368315444,1751113840400,-460.0,0.00019178,2]
[368315445,1751113840409,-490.69,0.00019178,2]
[368315446,1751113840419,-460.0,0.00019178,2]
[368315447,1751113840428,-460.0,0.00019178,2]
[368315448,1751113840437,-500.0,0.00019178,2]
[368315449,1751113840446,-646.64,0.00019178,2]
[368315451,1751113840456,-662.77,0.00019178,2]
[368315453,1751113840465,-460.0,0.00019178,2]
[368315455,1751113840474,-460.0,0.00019178,2]
[368315457,1751113840483,-460.0,0.00019178,2]
[368315458,1751113840492,-460.0,0.00019178,2]
[368315459,1751113840501,-347.76569123,0.00019178,2]
[368315460,1751113840512,-500.0,0.00019178,2]
[368315461,1751113840521,-498.27,0.00019178,2]
[368315462,1751113840530,-460.0,0.00019178,2]
[368315463,1751113840540,-500.0,0.00019178,2]
[368315464,1751113840549,-460.0,0.00019178,2]
[368315465,1751113840558,-460.0,0.00019178,2]
[368315466,1751113840567,-460.0,0.00019178,2]
[368315467,1751113840576,-460.0,0.00019178,2]
[368315468,1751113840586,-460.0,0.00019178,2]
[368315469,1751113840595,-460.0,0.00019178,2]
[368315470,1751113840604,-460.0,0.00019178,2]
[368315471,1751113840613,-460.0,0.00019178,2]
[368315472,1751113840622,-460.0,0.00019178,2]
[368315473,1751113840631,-460.0,0.00019178,2]
[368315474,1751113840640,-460.0,0.00019178,2]
[368315475,1751113840649,-460.0,0.00019178,2]
[368315476,1751113840658,-460.0,0.00019178,2]
[368315478,1751113840667,-460.0,0.00019178,2]
[368315479,1751113840676,-460.0,0.00019178,2]
[368315480,1751113840685,-460.0,0.00019178,2]
[368315481,1751113840694,-460.0,0.00019178,2]
[368315482,1751113840703,-460.0,0.00019178,2]
[368315483,1751113840712,-460.0,0.00019178,2]
[368315484,1751113840722,-460.0,0.00019178,2]
[368315485,1751113840731,-460.0,0.00019178,2]
[368315486,1751113840740,-460.0,0.00019178,2]
[368315487,1751113840749,-460.0,0.00019178,2]
[368315488,1751113840758,-2022.05,0.00019178,2]
[368315489,1751113840767,-1926.56,0.00019178,2]
[368315490,1751113840777,-2108.22,0.00019178,2]
[368315491,1751113840786,-822.42,0.00019178,2]
[368315492,1751113840795,-460.0,0.00019178,2]
[368315493,1751113840804,-460.0,0.00019178,2]
[368315494,1751113840813,-460.0,0.00019178,2]
[368315495,1751113840822,-460.0,0.00019178,2]
[368315496,1751113840831,-911.57,0.00019178,2]
[368315497,1751113840841,-460.0,0.00019178,2]
[368315498,1751113840850,-460.0,0.00019178,2]
[368315499,1751113840859,-460.0,0.00019178,2]
[368315500,1751113840868,-2378.24,0.00019178,2]
[368315501,1751113840877,-460.0,0.00019178,2]
[368315502,1751113840887,-460.0,0.00019178,2]
[368315503,1751113840896,-460.0,0.00019178,2]
[368315504,1751113840905,-460.0,0.00019178,2]
[368315505,1751113840913,-410.0,0.00019178,2]
[368315506,1751113840923,-460.0,0.00019178,2]
[368315507,1751113840932,-460.0,0.00019178,2]
[368315508,1751113840941,-1651.1,0.00019178,2]
[368315509,1751113840951,-460.0,0.00019178,2]
[368315510,1751113840960,-460.0,0.00019178,2]
[368315511,1751113840969,-460.0,0.00019178,2]
[368315512,1751113840978,-460.0,0.00019178,2]
[368315513,1751113840987,-460.0,0.00019178,2]
[368315514,1751113840996,-625.47,0.00019178,2]
[368315515,1751113841005,-3353.92,0.00019178,2]
[368315516,1751113841014,-460.0,0.00019178,2]
[368315517,1751113841024,-460.0,0.00019178,2]